Workbook

Sheet 2021统招入围体检人员名单
A1: 瑞昌市2021中小学教师招聘入闱体检人员名单表
A2: 序号 | B2: 职位(岗位)代码 | C2: 姓名 | D2: 单位(部门)名称 | E2: 职位名称 | F2: 准考证号 | G2: 证件号码 | H2: 毕业院校 | I2: 所学专业 | J2: 联系电话 | K2: 笔试总成绩 | L2: 面试成绩 | M2: 加试 | N2: 总分 | O2: 考场号 | P2: 备注
A3: 1 | B3: 400100110037 | C3: 李思颖 | D3: 瑞昌市城区小学 | E3: 小学-美术 | F3: 136042303215,236042303215 | G3: 360403199610291823 | H3: 湖北经济学院 | I3: 动画 | J3: 13163267637 | K3: 148 | L3: 87.5 | N3: =K3*0.2+L3*0.6 -> 82.10 | O3: 八
A4: 2 | B4: 400100110037 | C4: 李佳 | D4: 瑞昌市城区小学 | E4: 小学-美术 | F4: 136042303906,236042303906 | G4: 360421199805020022 | H4: 南昌大学科学技术学院 | I4: 环境设计 | J4: 18720088719 | K4: 151 | L4: 85.6 | N4: 81.56 | O4: 八
A5: 3 | B5: 400100110037 | C5: 段艳梅 | D5: 瑞昌市城区小学 | E5: 小学-美术 | F5: 136042304125,236042304125 | G5: 360428199810041682 | H5: 黄淮学院 | I5: 美术学 | J5: 13607024270 | K5: 149 | L5: 85.2 | N5: 80.92 | O5: 八
A6: 4 | B6: 400100110044 | C6: 于媛 | D6: 瑞昌市特殊教育学校 | E6: 小学-美术 | F6: 136042303920,236042303920 | G6: 360428198603130020 | H6: 江西师范大学美术学院 | I6: 国画 | J6: 13970284055 | K6: 145.5 | L6: 85.6 | N6: 80.46 | O6: 八
A7: 5 | B7: 400100210018 | C7: 黄文英 | D7: 瑞昌市城区初中 | E7: 初中-美术 | F7: 136040306311,236040306311 | G7: 360421199709104023 | H7: 闽江学院 | I7: 视觉传达设计 | J7: 17805988143 | K7: 153 | L7: 86.4 | N7: 82.44 | O7: 八
A8: 6 | B8: 400100210018 | C8: 龚婉云 | D8: 瑞昌市城区初中 | E8: 初中-美术 | F8: 136040306215,236040306215 | G8: 360403199803130321 | H8: 福州大学厦门工艺美术学院 | I8: 产品设计 | J8: 17859733350 | K8: 154.5 | L8: 84.9 | N8: 81.84 | O8: 八
A9: 7 | B9: 400100210019 | C9: 徐甜甜 | D9: 瑞昌市第八中学 | E9: 初中-美术 | F9: 136040306613,236040306613 | G9: 360481199101052823 | H9: 怀化学院 | I9: 美术学 | J9: 13684826352 | K9: 119.5 | L9: 84.8 | N9: 74.78 | O9: 八
A10: 8 | B10: 400100103034 | C10: 柯娜 | D10: 瑞昌市第三小学 | E10: 小学-英语 | F10: 136042300224,236042300224 | G10: 360481199602175426 | H10: 华北科技学院 | I10: 英语 | J10: 15732652369 | K10: 153 | L10: 85.2 | N10: =K10*0.25+L10*0.5 -> 80.85 | O10: 二
A11: 9 | B11: 400100109038 | C11: 王盼盼 | D11: 瑞昌市城区小学 | E11: 小学-音乐 | F11: 136017102111,236017102111 | G11: 360421199610074047 | H11: 重庆师范大学 | I11: 音乐表演 | J11: 18702385696 | K11: 145 | L11: 86.9 | M11: 86.13 | N11: =K11*0.2+L11*0.3+M11*0.3 -> 80.91 | O11: 九
A12: 10 | B12: 400100109038 | C12: 陈梁怡 | D12: 瑞昌市城区小学 | E12: 小学-音乐 | F12: 136042302720,236042302720 | G12: 360481199712123627 | H12: 贵阳学院 | I12: 音乐学 | J12: 17585465554 | K12: 125.5 | L12: 85 | M12: 86.76 | N12: =K12*0.2+L12*0.3+M12*0.3 -> 76.63 | O12: 九
A13: 11 | B13: 400100109038 | C13: 陈梦琪 | D13: 瑞昌市城区小学 | E13: 小学-音乐 | F13: 136230602527,236230602527 | G13: 362321199812110022 | H13: 昆明学院 | I13: 音乐学 | J13: 18587341988 | K13: 117.5 | L13: 82.96 | M13: 84.77 | N13: 73.82 | O13: 九
A14: 12 | B14: 400100118039 | C14: 柯静辉 | D14: 第六小学 | E14: 小学- 综合实践活 动（含信息技术） | F14: 136040300206,236040300206 | G14: 420222199502066148 | H14: 桂林理工大学博文管理学院 | I14: 电子商务 | J14: 18070216293 | K14: 119 | L14: 82.3 | N14: =K14*0.25+L14*0.5 -> 70.90 | O14: 九
A15: 13 | B15: 400100209020 | C15: 吴瑞 | D15: 瑞昌市城区初中 | E15: 初中-音乐 | F15: 136040200112,236040200112 | G15: 36048119990718004X | H15: 江西师范大学 | I15: 音乐学 | J15: 15170283068 | K15: 122.5 | L15: 84.6 | N15: =K15*0.2+L15*0.6 -> 75.26 | O15: 九
A16: 14 | B16: 400100209020 | C16: 冯雪 | D16: 瑞昌市城区初中 | E16: 初中-音乐 | F16: 136040200517,236040200517 | G16: 360481199611284026 | H16: 江西科技师范大学 | I16: 音乐学 | J16: 13879210805 | K16: 121.5 | L16: 84 | N16: =K16*0.2+L16*0.6 -> 74.70 | O16: 九
A17: 15 | B17: 400100102032 | C17: 陈柳君 | D17: 瑞昌市第六小学 | E17: 小学-数学 | F17: 136011202804,236011202804 | G17: 360481199603014464 | H17: 江西农业大学南昌商学院 | I17: 国际经济与贸易 | J17: 15949586756 | K17: 151 | L17: 82.6 | N17: 79.05 | O17: 六
A18: 16 | B18: 400100102033 | C18: 刘婷婷 | D18: 瑞昌市铜城学校 | E18: 小学-数学 | F18: 136040301421,236040301421 | G18: 360481199308022429 | H18: 江西师范大学科学技术学院 | I18: 国际经济与贸易 | J18: 17379228982 | K18: 132.5 | L18: 84.8 | N18: 75.53 | O18: 六
A19: 17 | B19: 400100202013 | C19: 李奇凤 | D19: 瑞昌市铜城学校 | E19: 初中-数学 | F19: 136042203714,236042203714 | G19: 360481199410111022 | H19: 江西师范大学 | J19: 15179253304 | K19: 102.5 | L19: 83.6 | N19: 67.43 | O19: 六
A20: 18 | B20: 400100112035 | C20: 张玉杰 | D20: 瑞昌市第七小学 | E20: 小学-体育与健康 | F20: 136040700110,236040700110 | G20: 360402199901025182 | H20: 江西科技师范大学 | I20: 社会体育指导与管理 | J20: 18379231413 | K20: 140 | L20: 85.4 | M20: 72.33 | N20: =K20*0.2+L20*0.3+M20*0.3 -> 75.32 | O20: 七
A21: 19 | B21: 400100112035 | C21: 王佳林子 | D21: 瑞昌市第七小学 | E21: 小学-体育与健康 | F21: 136040700312,236040700312 | G21: 360481199211110027 | H21: 武汉体育学院体育科技学院 | I21: 体育教育 | J21: 13755295961 | K21: 111.5 | L21: 83.8 | M21: 83 | N21: =K21*0.2+L21*0.3+M21*0.3 -> 72.34 | O21: 七
A22: 20 | B22: 400100112036 | C22: 张云 | D22: 瑞昌市城区小学 | E22: 小学-体育与健康 | F22: 136040700712,236040700712 | G22: 360781199611134710 | H22: 九江学院 | I22: 社会体育指导与管理 | J22: 18000230102 | K22: 112.5 | L22: 83.6 | M22: 92.8 | N22: =K22*0.2+L22*0.3+M22*0.3 -> 75.42 | O22: 七
A23: 21 | B23: 400100112036 | C23: 柯敏 | D23: 瑞昌市城区小学 | E23: 小学-体育与健康 | F23: 136040700302,236040700302 | G23: 360481199206085410 | H23: 北京体育大学 | I23: 社会体育 | J23: 13691098768 | K23: 103.5 | L23: 85.2 | M23: 87 | N23: =K23*0.2+L23*0.3+M23*0.3 -> 72.36 | O23: 七
A24: 22 | B24: 400100213016 | C24: 袁念慧 | D24: 瑞昌市城区初中 | E24: 初中-体育与健康 | F24: 136040306903,236040306903 | G24: 360481199308024467 | H24: 莆田学院 | I24: 体育教育 | J24: 17113478806 | K24: 148 | L24: 78.6 | N24: =K24*0.2+L24*0.6 -> 76.76 | O24: 七
A25: 23 | B25: 400100213016 | C25: 孔斯妍 | D25: 瑞昌市城区初中 | E25: 初中-体育与健康 | F25: 136040307022,236040307022 | G25: 360402199701204768 | H25: 井冈山大学 | I25: 体育教育 | J25: 15179240926 | K25: 141 | L25: 80 | N25: 76.20 | O25: 七
A26: 24 | B26: 400100213017 | C26: 戴伟 | D26: 瑞昌市第六中学 | E26: 初中-体育与健康 | F26: 136040306924,236040306924 | G26: 360421199308263218 | H26: 江西科技师范大学理工学院 | I26: 体育教育 | J26: 15179147690 | K26: 111.5 | L26: 83.4 | N26: 72.34 | O26: 七
A27: 25 | B27: 400100313055 | C27: 刘礼豪 | D27: 瑞昌中等专业学校 | E27: 高中-体育与健康 | F27: 136040904120,236040904120 | G27: 360402199412161511 | H27: 东华理工大学 | I27: 体育教育 | J27: 18370271876 | K27: 148 | L27: 85.6 | N27: 80.96 | O27: 七
A28: 26 | B28: 400100201010 | C28: 梅单 | D28: 瑞昌市城区初中 | E28: 初中-语文 | F28: 136040900329,236040900329 | G28: 36040119980819302X | H28: 景德镇学院 | I28: 汉语言文学 | J28: 18379276319 | K28: 158 | L28: 88.2 | N28: =K28*0.25+L28*0.5 -> 83.60 | O28: 三
A29: 27 | B29: 400100201010 | C29: 赵旭玥 | D29: 瑞昌市城区初中 | E29: 初中-语文 | F29: 136040900324,236040900324 | G29: 362526199801070523 | H29: 长春师范大学 | I29: 戏剧影视文学 | J29: 15330602212 | K29: 144 | L29: 87.6 | N29: 79.80 | O29: 三
A30: 28 | B30: 400100201010 | C30: 温馨 | D30: 瑞昌市城区初中 | E30: 初中-语文 | F30: 136040900217,236040900217 | G30: 360481199810251024 | H30: 南昌师范学院 | I30: 汉语言文学专业 | J30: 18379222518 | K30: 145 | L30: 84.8 | N30: 78.65 | O30: 三
A31: 29 | B31: 400100201010 | C31: 柯孟玲 | D31: 瑞昌市城区初中 | E31: 初中-语文 | F31: 136040900126,236040900126 | G31: 360481199806052225 | H31: 南昌大学科学技术学院 | I31: 汉语言文学 | J31: 17379209775 | K31: 140 | L31: 85.6 | N31: 77.80 | O31: 三
A32: 30 | B32: 400100201011 | C32: 何文苒 | D32: 瑞昌市城区初中(限招） | E32: 初中-语文 | F32: 136040900728,236040900728 | G32: 360481199211233043 | H32: 华东交通大学 | I32: 对外汉语 | J32: 18720073336 | K32: 135.5 | L32: 88.6 | N32: 78.18 | O32: 三
A33: 31 | B33: 400100201011 | C33: 杨婷 | D33: 瑞昌市城区初中(限招） | E33: 初中-语文 | F33: 136040901104,236040901104 | G33: 360481199111091228 | H33: 中原工学院 | I33: 广播电视编导 | J33: 18270241939 | K33: 135.5 | L33: 86 | N33: 76.88 | O33: 三
A34: 32 | B34: 400100301045 | C34: 朱紫玲 | D34: 瑞昌市第二中学 | E34: 高中-语文 | F34: 136040206019,236040206019 | G34: 360427199705182022 | H34: 江西师范大学 | I34: 文化产业管理 | J34: 18879218283 | K34: 130 | L34: 88.4 | N34: =K34*0.25+L34*0.5 -> 76.70 | O34: 三
A35: 33 | B35: 400100301052 | C35: 李婵 | D35: 瑞昌中等专业学校 | E35: 高中-语文 | F35: 136040206128,236040206128 | G35: 362201199611010489 | H35: 江西师范大学 | I35: 文化产业管理 | J35: 15397917243 | K35: 153.5 | L35: 86.2 | N35: 81.48 | O35: 三
A36: 34 | B36: 400100301052 | C36: 王君 | D36: 瑞昌中等专业学校 | E36: 高中-语文 | F36: 136040206122,236040206122 | G36: 360428199906084521 | H36: 江西财经大学 | I36: 软件工程 | J36: 15180411058 | K36: 142 | L36: 87 | N36: 79.00 | O36: 三
A37: 35 | B37: 400100301052 | C37: 陈星星 | D37: 瑞昌中等专业学校 | E37: 高中-语文 | F37: 136040205912,236040205912 | G37: 360481199709223221 | H37: 南昌师范学院 | I37: 汉语言文学 | J37: 15579209154 | K37: 135.5 | L37: 87.4 | N37: 77.58 | O37: 三
A38: 36 | B38: 400100301052 | C38: 周奕寒 | D38: 瑞昌中等专业学校 | E38: 高中-语文 | F38: 136040205825,236040205825 | G38: 360481199801200022 | H38: 西北民族大学 | I38: 汉语国际教育 | J38: 18970217013 | K38: 133.5 | L38: 87.8 | N38: 77.28 | O38: 三
A39: 37 | B39: 400100301052 | C39: 李颖 | D39: 瑞昌中等专业学校 | E39: 高中-语文 | F39: 136040205805,236040205805 | G39: 360481199608065623 | H39: 江西科技师范大学 | I39: 汉语言文学 | J39: 17879824746 | K39: 132.5 | L39: 87 | N39: 76.63 | O39: 三
A40: 38 | B40: 400100301052 | C40: 周波 | D40: 瑞昌中等专业学校 | E40: 高中-语文 | F40: 136040205607,236040205607 | G40: 360481199910270046 | H40: 江西科技师范大学理工学院 | I40: 汉语言文学 | J40: 13970256349 | K40: 123 | L40: 88 | N40: 74.75 | O40: 三
A41: 39 | B41: 400100114042 | C41: 田海燕 | D41: 瑞昌市实验小学 | E41: 小学-道德与法治 | F41: 136040701216,236040701216 | G41: 360481198602155025 | H41: 九江学院 | I41: 国际经济法 | J41: 18770227997 | K41: 167.5 | L41: 86.4 | N41: 85.08 | O41: 十
A42: 40 | B42: 400100120040 | C42: 刘倩 | D42: 瑞昌市第二小学 | E42: 小学-心理健康 | F42: 136042305617,236042305617 | G42: 360430199602200046 | H42: 重庆大学 | I42: 公共事业管理 | J42: 15297921127 | K42: 145 | L42: 87 | N42: 79.75 | O42: 十
A43: 41 | B43: 400100204025 | C43: 封思雨 | D43: 瑞昌市城区初中 | E43: 初中-历史 | F43: 136042305022,236042305022 | G43: 360481199605164028 | H43: 上饶师范学院 | I43: 旅游管理 | J43: 15070313306 | K43: 146 | L43: 83 | N43: 78.00 | O43: 十
A44: 42 | B44: 400100204025 | C44: 陈荣 | D44: 瑞昌市城区初中 | E44: 初中-历史 | F44: 136042304713,236042304713 | G44: 360481199707122427 | H44: 河南师范大学 | I44: 法学 | J44: 18695851474 | K44: 133.5 | L44: 84.2 | N44: 75.48 | O44: 十
A45: 43 | B45: 400100215024 | C45: 段金萍 | D45: 瑞昌市城区初中 | E45: 初中-道德与法治 | F45: 136040702514,236040702514 | G45: 360428199603180444 | H45: 南昌航空大学 | I45: 工商管理 | J45: 17779140735 | K45: 163 | L45: 86.4 | N45: 83.95 | O45: 十
A46: 44 | B46: 400100215024 | C46: 蔡舒舒 | D46: 瑞昌市城区初中 | E46: 初中-道德与法治 | F46: 136214201611,236214201611 | G46: 360481199812061021 | H46: 赣南师范大学 | I46: 教育学 | J46: 18007021206 | K46: 151.5 | L46: 84.8 | N46: 80.28 | O46: 十
A47: 45 | B47: 400100215024 | C47: 曾相玲 | D47: 瑞昌市城区初中 | E47: 初中-道德与法治 | F47: 136040702410,236040702410 | G47: 36042119910223442X | H47: 南昌航空大学 | I47: 法语 | J47: 13671647376 | K47: 144.5 | L47: 85.6 | N47: 78.93 | O47: 十
A48: 46 | B48: 400100220029 | C48: 柯文宇 | D48: 瑞昌市第七中学 | E48: 初中-心理健康 | F48: 136040307204,236040307204 | G48: 360423199412161011 | H48: 江西科技师范大学 | I48: 电子商务 | J48: 18279139082 | K48: 141 | L48: 85.6 | N48: 78.05 | O48: 十
A49: 47 | B49: 400100304050 | C49: 冯佳佳 | D49: 瑞昌市第二中学 | E49: 高中-历史 | F49: 136040703314,236040703314 | G49: 360481199612271024 | H49: 阜阳师范大学 | I49: 历史学 | J49: 18179220932 | K49: 136 | L49: 84.8 | N49: 76.40 | O49: 十
A50: 48 | B50: 400100316049 | C50: 田钰 | D50: 瑞昌市第二中学 | E50: 高中-思想政治 | F50: 136213806113,236213806113 | G50: 360481199902040021 | H50: 赣南师范大学 | I50: 思想政治教育 | J50: 13667027607 | K50: 147.5 | L50: 85 | N50: 79.38 | O50: 十
A51: 49 | B51: 400100205026 | C51: 王定勋 | D51: 瑞昌市城区初中 | E51: 初中-地理 | F51: 136040901623,236040901623 | G51: 360481199210094811 | H51: 青岛农业大学 | I51: 广播电视编导 | J51: 17779297264 | K51: 150 | L51: 85.8 | N51: 80.40 | O51: 十二
A52: 50 | B52: 400100205026 | C52: 方琴 | D52: 瑞昌市城区初中 | E52: 初中-地理 | F52: 136040901709,236040901709 | G52: 360312198702240528 | H52: 南昌航空大学科技学院 | I52: 经济学 | J52: 15870899764 | K52: 151 | L52: 84.2 | N52: 79.85 | O52: 十二
A53: 51 | B53: 400100208027 | C53: 俞蓓 | D53: 瑞昌市城区初中 | E53: 初中-生物 | F53: 136040300929,236040300929 | G53: 360403199407260925 | H53: 南昌大学科学技术学院 | I53: 生物工程 | J53: 18779172440 | K53: 145.5 | L53: 86.4 | N53: 79.58 | O53: 十二
A54: 52 | B54: 400100208027 | C54: 荀梦琪 | D54: 瑞昌市城区初中 | E54: 初中-生物 | F54: 136040301021,236040301021 | G54: 360421199401260046 | H54: 赣南师范大学 | I54: 生物科学 | J54: 18379788121 | K54: 141 | L54: 83.8 | N54: 77.15 | O54: 十二
A55: 53 | B55: 400100218028 | C55: 庄燕玲 | D55: 瑞昌市第七中学 | E55: 初中-综合实践活 动（含信息技术） | F55: 136042306409,236042306409 | G55: 350521199303035260 | H55: 福建工程学院 | I55: 计算机科学与技术 | J55: 18059099143 | K55: 169 | L55: 83.4 | N55: =K55*0.25+L55*0.5 -> 83.95 | O55: 十二
A56: 54 | B56: 400100306047 | C56: 胡柯 | D56: 瑞昌市第二中学 | E56: 高中-物理 | F56: 136040903128,236040903128 | G56: 360403199512102435 | H56: 江西师范大学 | I56: 物理学 | J56: 15270001722 | K56: 99 | L56: 81.6 | N56: 65.55 | O56: 十二
A57: 55 | B57: 400100307048 | C57: 周莉 | D57: 瑞昌市第二中学 | E57: 高中-化学 | F57: 136040903514,236040903514 | G57: 360481199108274429 | H57: 成都理工大学 | I57: 化学 | J57: 13677927692 | K57: 135.5 | L57: 84 | N57: 75.88 | O57: 十二
A58: 56 | B58: 400100308051 | C58: 范天然 | D58: 瑞昌市第二中学 | E58: 高中-生物 | F58: 136040206701,236040206701 | G58: 360481199111131031 | H58: 武汉轻工大学 | I58: 水产养殖学 | J58: 15727633964 | K58: 132 | L58: 85 | N58: 75.50 | O58: 十二
A59: 57 | B59: 400100317056 | C59: 万湘湘 | D59: 瑞昌中等专业学校 | E59: 高中-信息技术和通用技术 | F59: 136042206512,236042206512 | G59: 360428199011144984 | H59: 江西科技师范大学 | I59: 电子信息工程 | J59: 13755281804 | K59: 138.5 | L59: 82.2 | N59: 75.73 | O59: 十二
A60: 58 | B60: 400100111041 | C60: 曹珠爱 | D60: 瑞昌市城区小学 | E60: 小学-科学 | F60: 136042304427,236042304427 | G60: 362330199109226804 | H60: 上饶师范学院 | I60: 汉语言文学 | J60: 15179310361 | K60: 151.5 | L60: 86.2 | N60: 80.98 | O60: 十一
A61: 59 | B61: 400100111041 | C61: 殷淑琴 | D61: 瑞昌市城区小学 | E61: 小学-科学 | F61: 136042304325,236042304325 | G61: 421127199203110484 | H61: 黄冈师范学院 | I61: 广播电视编导 | J61: 18279223966 | K61: 141 | L61: 84.8 | N61: 77.65 | O61: 十一
A62: 60 | B62: 400100206022 | C62: 张瑜 | D62: 瑞昌市城区初中 | E62: 初中-物理 | F62: 136040300713,236040300713 | G62: 360481199605221029 | H62: 江西中医药大学 | I62: 计算机科学与技术 | J62: 18296217934 | K62: 179 | L62: 84.2 | N62: 86.85 | O62: 十一
A63: 61 | B63: 400100206022 | C63: 冯志诚 | D63: 瑞昌市城区初中 | E63: 初中-物理 | F63: 136040300806,236040300806 | G63: 360481199301010038 | H63: 上海理工大学 | I63: 机械设计及其自动化 | J63: 17879827122 | K63: 152 | L63: 83.6 | N63: 79.80 | O63: 十一
A64: 62 | B64: 400100206022 | C64: 黄医 | D64: 瑞昌市城区初中 | E64: 初中-物理 | F64: 136040300803,236040300803 | G64: 360311199611131017 | H64: 九江学院 | I64: 教育技术学 | J64: 13979939652 | K64: 142.5 | L64: 86.8 | N64: 79.03 | O64: 十一
A65: 63 | B65: 400100207023 | C65: 何姗 | D65: 瑞昌市城区初中 | E65: 初中-化学 | F65: 136042306002,236042306002 | G65: 360424199405071567 | H65: 南昌大学 | I65: 化学 | J65: 18679106032 | K65: 136 | L65: 87 | N65: 77.50 | O65: 十一
A66: 64 | B66: 400100207023 | C66: 徐可 | D66: 瑞昌市城区初中 | E66: 初中-化学 | F66: 136042305821,236042305821 | G66: 360481199911185628 | H66: 江西科技师范大学 | I66: 金属材料工程 | J66: 13672267699 | K66: 132 | L66: 86.6 | N66: 76.30 | O66: 十一
A67: 65 | B67: 400100101030 | C67: 徐灵艳 | D67: 瑞昌市第三小学 | E67: 小学-语文 | F67: 136230600517,236230600517 | G67: 360425199710081725 | H67: 上饶师范学院 | I67: 旅游管理 | J67: 13056872565 | K67: 158 | L67: 86.9 | N67: 82.95 | O67: 四
A68: 66 | B68: 400100101031 | C68: 徐海霞 | D68: 瑞昌市第六小学 | E68: 小学-语文 | F68: 136040201326,236040201326 | G68: 360481199005192826 | H68: 东华理工大学 | I68: 汉语言文学 | J68: 13122970755 | K68: 144.5 | L68: 85.2 | N68: 78.73 | O68: 四
A69: 67 | B69: 400100101043 | C69: 杜宇 | D69: 瑞昌市特殊教育学校 | E69: 小学-语文 | F69: 136010501829,236010501829 | G69: 360481199908254426 | H69: 江西师范大学 | I69: 特殊教育 | J69: 18979249586 | K69: 149 | L69: 84.8 | N69: 79.65 | O69: 四
A70: 68 | B70: 400100202012 | C70: 陈梦 | D70: 瑞昌市城区初中 | E70: 初中-数学 | F70: 136042202917,236042202917 | G70: 360421199810120028 | H70: 江西师范大学 | I70: 数学与应用数学 | J70: 13697925503 | K70: 159.5 | L70: 83.2 | N70: 81.48 | O70: 五
A71: 69 | B71: 400100202012 | C71: 陈鑫辉 | D71: 瑞昌市城区初中 | E71: 初中-数学 | F71: 136042203123,236042203123 | G71: 36048119981105281X | H71: 景德镇陶瓷大学 | I71: 会计学 | J71: 15279291093 | K71: 154.5 | L71: 83.8 | N71: 80.53 | O71: 五
A72: 70 | B72: 400100202012 | C72: 饶仁仁 | D72: 瑞昌市城区初中 | E72: 初中-数学 | F72: 136042203306,236042203306 | G72: 360481199704226028 | H72: 南昌大学科学技术学院 | I72: 国际经济与贸易 | J72: 18720239185 | K72: 142 | L72: 84.4 | N72: 77.70 | O72: 五
A73: 71 | B73: 400100202012 | C73: 梅丹 | D73: 瑞昌市城区初中 | E73: 初中-数学 | F73: 136042203303,236042203303 | G73: 421127199907150847 | H73: 湘潭大学 | I73: 信息管理与信息系统 | J73: 17786622958 | K73: 129 | L73: 86.2 | N73: 75.35 | O73: 五
A74: 72 | B74: 400100202012 | C74: 刘玲玲 | D74: 瑞昌市城区初中 | E74: 初中-数学 | F74: 136042204121,236042204121 | G74: 360428199911156227 | H74: 宜春学院 | I74: 经济学 | J74: 15720977493 | K74: 127.5 | L74: 84 | N74: 73.88 | O74: 五
A75: 73 | B75: 400100302053 | C75: 江志斌 | D75: 瑞昌中等专业学校 | E75: 高中-数学 | F75: 136040702917,236040702917 | G75: 360428199509071831 | H75: 九江学院 | I75: 应用物理学 | J75: 18479278029 | K75: 169 | L75: 85.2 | N75: 84.85 | O75: 五
A76: 74 | B76: 400100302053 | C76: 刘林军 | D76: 瑞昌中等专业学校 | E76: 高中-数学 | F76: 136040703126,236040703126 | G76: 360430199005103352 | H76: 江西科技师范大学 | I76: 电子科学与技术 | J76: 18170261806 | K76: 155.5 | L76: 85 | N76: 81.38 | O76: 五
A77: 75 | B77: 400100302053 | C77: 李亚 | D77: 瑞昌中等专业学校 | E77: 高中-数学 | F77: 136040703021,236040703021 | G77: 360421199611232027 | H77: 江西师范大学 | I77: 数学与应用数学（师范类） | J77: 18770249135 | K77: 142 | L77: 84.8 | N77: 77.90 | O77: 五
A78: 76 | B78: 400100302053 | C78: 袁静 | D78: 瑞昌中等专业学校 | E78: 高中-数学 | F78: 136040703009,236040703009 | G78: 36048119970522004X | H78: 江西师范大学 | I78: 数学与应用数学 | J78: 15170922592 | K78: 145 | L78: 82.8 | N78: 77.65 | O78: 五
A79: 77 | B79: 400100302053 | C79: 董玖连 | D79: 瑞昌中等专业学校 | E79: 高中-数学 | F79: 136040703013,236040703013 | G79: 362424198612162020 | H79: 华东交通大学 | I79: 国际经济与贸易 | J79: 15270563951 | K79: 148.5 | L79: 81 | N79: 77.63 | O79: 五
A80: 78 | B80: 400100302053 | C80: 秦杰 | D80: 瑞昌中等专业学校 | E80: 高中-数学 | F80: 136040703214,236040703214 | G80: 360428199509206011 | H80: 九江学院 | I80: 自动化 | J80: 18870228408 | K80: 143.5 | L80: 80 | N80: 75.88 | O80: 五
A81: 79 | B81: 400100203014 | C81: 李梦欣 | D81: 瑞昌市城区初中 | E81: 初中-英语 | F81: 136042205912,236042205912 | G81: 360402199708305203 | H81: 景德镇陶瓷大学 | I81: 英语 | J81: 15179882958 | K81: 162 | L81: 83.4 | N81: =K81*0.25+L81*0.5 -> 82.20 | O81: 一
A82: 80 | B82: 400100203014 | C82: 陈晓阳 | D82: 瑞昌市城区初中 | E82: 初中-英语 | F82: 136013903417,236013903417 | G82: 360428199703110822 | H82: 江西师范大学 | I82: 英语 | J82: 18970229476 | K82: 162.5 | L82: 82.6 | N82: =K82*0.25+L82*0.5 -> 81.93 | O82: 一
A83: 81 | B83: 400100203014 | C83: 曹祎晨 | D83: 瑞昌市城区初中 | E83: 初中-英语 | F83: 136042206212,236042206212 | G83: 360402199805305205 | H83: 武汉学院 | I83: 商务英语 | J83: 18970224774 | K83: 156 | L83: 82 | N83: =K83*0.25+L83*0.5 -> 80.00 | O83: 一
A84: 82 | B84: 400100203015 | C84: 王娅苹 | D84: 瑞昌市铜城学校 | E84: 初中-英语 | F84: 136042204314,236042204314 | G84: 360481199601160425 | H84: 华东交通大学 | I84: 公共事业管理 | J84: 15779573152 | K84: 156.5 | L84: 83.76 | N84: =K84*0.25+L84*0.5 -> 81.01 | O84: 一
A85: 83 | B85: 400100303046 | C85: 何京燕 | D85: 瑞昌市第二中学 | E85: 高中-英语 | F85: 136040902925,236040902925 | G85: 360481199804193024 | H85: 重庆师范大学涉外商贸学院 | I85: 英语（师范） | J85: 15279296557 | K85: 155 | L85: 84.4 | N85: =K85*0.25+L85*0.5 -> 80.95 | O85: 一
A86: 84 | B86: 400100303054 | C86: 李敏 | D86: 瑞昌中等专业学校 | E86: 高中-英语 | F86: 136040902205,236040902205 | G86: 360481199009033427 | H86: 江西农业大学 | I86: 英语 | J86: 18779293969 | K86: 165.5 | L86: 83.2 | N86: 82.98 | O86: 一
A87: 85 | B87: 400100303054 | C87: 王悦 | D87: 瑞昌中等专业学校 | E87: 高中-英语 | F87: 136017003616,236017003616 | G87: 360423199710093424 | H87: 江西农业大学 | I87: 经济学 | J87: 18270659996 | K87: 160.5 | L87: 84.1 | N87: 82.18 | O87: 一
A88: 86 | B88: 400100303054 | C88: 邹艺 | D88: 瑞昌中等专业学校 | E88: 高中-英语 | F88: 136040902001,236040902001 | G88: 360429199710280025 | H88: 九江学院 | I88: 英语 | J88: 19880263589 | K88: 152.5 | L88: 86.2 | N88: 81.23 | O88: 一
A89: 87 | B89: 400100303054 | C89: 张丹丹 | D89: 瑞昌中等专业学校 | E89: 高中-英语 | F89: 136017003613,236017003613 | G89: 360481199311021064 | H89: 江西师范大学 | I89: 英语（师范） | J89: 18270851213 | K89: 157.5 | L89: 82.3 | N89: 80.53 | O89: 一
A90: 88 | B90: 400100303054 | C90: 王璐露 | D90: 瑞昌中等专业学校 | E90: 高中-英语 | F90: 136040902109,236040902109 | G90: 360481199811243229 | H90: 江西师范大学 | I90: 英语 | J90: 13065180623 | K90: 154.5 | L90: 82.9 | N90: 80.08 | O90: 一
A91: 89 | B91: 400100303054 | C91: 郭小倩 | D91: 瑞昌中等专业学校 | E91: 高中-英语 | F91: 136040902107,236040902107 | G91: 360481199511121027 | H91: 江西师范大学 | I91: 英语（师范） | J91: 15170279577 | K91: 155 | L91: 82 | N91: 79.75 | O91: 一
A92: 90 | B92: 400100401057 | C92: 魏秀玲 | D92: 瑞昌市第二幼儿园 | E92: 幼儿园-幼儿园教师 | F92: 336041301302 | G92: 360430199609191728 | H92: 南昌师范学院 | I92: 学前教育 | J92: 18379218248 | K92: 86 | L92: 86 | N92: 86
A93: 91 | B93: 400100401057 | C93: 温琪琪 | D93: 瑞昌市第二幼儿园 | E93: 幼儿园-幼儿园教师 | F93: 336041301028 | G93: 360481199601271248 | H93: 中华女子学院 | I93: 学前教育 | J93: 17808827701 | K93: 82.5 | L93: 84.6 | N93: 83.76
A94: 92 | B94: 400100401058 | C94: 崔文艺 | D94: 瑞昌市第三幼儿园 | E94: 幼儿园-幼儿园教师 | F94: 336041303414 | G94: 360421199910175026 | H94: 豫章师范学院 | I94: 学前教育 | J94: 18720149230 | K94: 90 | L94: 82 | N94: 85.2
A95: 93 | B95: 400100401058 | C95: 黄梅雨 | D95: 瑞昌市第三幼儿园 | E95: 幼儿园-幼儿园教师 | F95: 336017603027 | G95: 360424199012051346 | H95: 国家开放大学 | I95: 汉语言文学 | J95: 15879212706 | K95: 79.5 | L95: 80.2 | N95: 79.92
A96: 94 | B96: 400100401059 | C96: 周小芹 | D96: 瑞昌市第四幼儿园 | E96: 幼儿园-幼儿园教师 | F96: 336041301304 | G96: 360481199902210027 | H96: 九江职业大学 | I96: 学前教育 | J96: 18370113192 | K96: 86 | L96: 87 | N96: 86.6
A97: 95 | B97: 400100401059 | C97: 朱兰菲 | D97: 瑞昌市第四幼儿园 | E97: 幼儿园-幼儿园教师 | F97: 336017602024 | G97: 360481199806154029 | H97: 江西省赣州市赣南师范大学 | I97: 学前教育 | J97: 15180615617 | K97: 83 | L97: 81.2 | N97: 81.92
A98: 96 | B98: 400100401060 | C98: 邹金霞 | D98: 瑞昌市第五幼儿园 | E98: 幼儿园-幼儿园教师 | F98: 336013503403 | G98: 360481199501221227 | H98: 江西科技师范大学 | I98: 学前教育 | J98: 18270897565 | K98: 88 | L98: 84.6 | N98: 85.96
A99: 97 | B99: 400100401060 | C99: 杨莹 | D99: 瑞昌市第五幼儿园 | E99: 幼儿园-幼儿园教师 | F99: 336041301806 | G99: 360425199904070020 | H99: 江西省宜春学院高安校区 | I99: 学前教育 | J99: 18270207615 | K99: 86.5 | L99: 83.2 | N99: 84.52
A100: 98 | B100: 400100401061 | C100: 吴瑾 | D100: 瑞昌市第六幼儿园 （裕丰幼儿园） | E100: 幼儿园-幼儿园教师 | F100: 336041302310 | G100: 360425199810284327 | H100: 江西省宜春学院高安校区 | I100: 学前教育 | J100: 18270272076 | K100: 83 | L100: 83 | N100: 83
A101: 99 | B101: 400100401061 | C101: 周金金 | D101: 瑞昌市第六幼儿园 （裕丰幼儿园） | E101: 幼儿园-幼儿园教师 | F101: 336041303803 | G101: 360481199705260041 | H101: 南昌市教育学院 | I101: 学前教育专业 | J101: 18397927213 | K101: 79 | L101: 83.4 | N101: 81.64
